bitfinex/quotes_ETHUSD_20260130
["timestamp","ask_amount","ask_price","bid_price","bid_amount"]
[1769750328725,0.762,2751.8,2751.0,9.63391555]
[1769750328907,0.762,2751.8,2751.1,10.1480418]
[1769750329106,0.762,2751.7,2751.1,10.1480418]
[1769750329301,0.6500616,2751.9,2751.2,8.7251551]
[1769750330213,0.763,2752.1,2751.2,8.7251551]
[1769750330409,0.763,2752.1,2751.4,8.7251551]
[1769750330608,0.763,2752.1,2751.5,0.96338165]
[1769750330858,0.001,2752.1,2751.5,9.68853675]
[1769750331015,0.762,2752.0,2751.5,9.68853675]
[1769750331210,0.762,2752.2,2751.6,8.7251551]
[1769750332932,0.762,2752.2,2751.7,9.63368437]
[1769750333228,0.762,2752.2,2751.8,1.32678015]
[1769750333802,0.001,2752.5,2751.8,10.05193525]
[1769750334126,0.762,2752.4,2751.8,10.05193525]
[1769750334334,0.001,2751.9,2751.8,10.05193525]
[1769750335036,0.001,2751.9,2751.8,10.9604315]
[1769750335336,0.001,2751.9,2751.8,1.32678015]
[1769750335636,0.001,2751.9,2751.5,0.9085807]
[1769750336215,0.001,2751.9,2751.4,0.90860487]
[1769750336734,0.001,2751.9,2751.2,0.90867325]
[1769750336735,8.96928725,2751.8,2751.2,0.90867325]
[1769750336908,6.50330138,2751.9,2751.0,8.98086265]
[1769750337116,6.50330138,2751.9,2751.1,0.90872741]
[1769750337321,0.001,2751.9,2751.1,9.88959006]
[1769750337527,0.762,2751.8,2751.2,10.33331262]
[1769750340718,0.001,2751.9,2751.3,0.90866136]
[1769750340917,0.001,2751.9,2751.3,9.88952401]
[1769750346344,0.001,2751.9,2751.5,0.002]
[1769750348441,0.001,2751.9,2751.5,8.98286265]
[1769750348750,0.001,2751.9,2751.6,0.89828627]
[1769750349949,0.001,2751.9,2751.6,1.80681833]
[1769750354563,0.001,2751.9,2751.6,0.90853206]
[1769750355029,0.001,2751.9,2751.5,0.91057041]
[1769750355231,0.001,2751.9,2751.6,0.90855249]
[1769750357983,0.001,2751.9,2751.5,0.002]
[1769750359527,0.001,2751.9,2751.5,8.98286265]
[1769750359739,0.001,2751.9,2751.7,8.98086265]
[1769750359944,0.001,2751.9,2751.6,1.80682437]
[1769750360271,0.001,2751.9,2751.6,0.9085381]
[1769750361861,0.001,2751.9,2751.5,3.63634851]
[1769750361862,0.001,2751.9,2751.5,0.002]
[1769750367369,9.08867128,2751.7,2750.7,0.90884255]
[1769750367539,9.08867128,2751.4,2750.4,0.91093372]
[1769750367735,9.08867128,2751.1,2750.4,0.002]
[1769750367959,9.08867128,2751.1,2750.2,1.2612654]
[1769750368159,9.08867128,2751.1,2750.2,2.16827974]
[1769750368395,9.08867128,2751.1,2750.3,0.90898876]
[1769750368540,9.08867128,2751.1,2750.4,0.90895458]
[1769750368741,0.762,2751.0,2750.4,0.90895707]
[1769750368937,0.762,2751.2,2750.6,9.70752469]
[1769750369355,0.762,2751.2,2750.5,0.90889735]
[1769750370263,0.762,2751.2,2750.6,0.90888776]
[1769750370476,0.762,2751.2,2750.5,0.91090418]
[1769750371943,0.762,2751.2,2750.5,9.70952469]
[1769750372271,9.08867128,2751.3,2750.5,9.70952469]
[1769750372469,0.762,2751.2,2750.5,9.70952469]
[1769750373167,9.99731654,2751.4,2750.5,9.70952469]
[1769750373382,0.762,2751.2,2750.5,9.70952469]
[1769750374069,0.762,2751.2,2750.5,10.61842658]
[1769750377547,0.762,2751.3,2750.5,10.61842658]
[1769750377781,9.80892974,2751.9,2750.5,10.61842658]
[1769750377988,0.762,2751.8,2750.5,10.61842658]
[1769750378273,0.762,2751.8,2750.7,9.68709397]
[1769750378683,9.66144855,2751.8,2750.7,9.68709397]
[1769750379789,10.56994512,2751.8,2750.9,9.68709397]
[1769750381747,10.56994512,2751.8,2751.0,10.59585442]
[1769750383251,0.001,2751.6,2751.0,10.59585442]
[1769750384152,0.001,2751.6,2750.6,2.07513335]
[1769750384153,8.90044855,2751.6,2750.7,10.59595353]
[1769750386782,0.001,2751.6,2750.7,10.59595353]
[1769750388075,0.763,2751.6,2750.7,10.59595353]
[1769750388474,0.90948463,2751.9,2750.7,10.59595353]
[1769750388475,0.001,2751.9,2751.0,9.68709397]
[1769750388686,1.66437351,2752.2,2751.2,9.68709397]
[1769750388996,10.56382206,2752.2,2751.2,9.68709397]
[1769750389887,8.89944855,2752.1,2751.2,9.68709397]
[1769750390093,6.49708381,2751.9,2751.1,1.61841778]
[1769750390263,15.39653236,2751.9,2751.0,9.68709397]
[1769750390965,8.89944855,2751.5,2750.7,0.90883372]
[1769750391692,8.89944855,2751.5,2750.8,0.9088229]
[1769750391899,8.89944855,2751.5,2750.7,0.90883758]
[1769750392299,8.89944855,2751.5,2750.8,0.90882463]
[1769750393299,0.762,2751.4,2750.7,0.90885956]
[1769750393500,0.762,2751.4,2750.7,2.53972426]
[1769750393681,9.66144855,2751.4,2750.7,2.53972426]
[1769750395200,9.66144855,2751.4,2750.9,0.002]
[1769750397306,10.57007815,2751.4,2750.6,0.002]
[1769750397610,9.72632021,2751.2,2750.6,0.002]
[1769750397972,0.90857942,2751.6,2750.7,10.01066271]
[1769750398206,0.762,2751.5,2750.7,10.01066271]
[1769750398895,0.9085176,2751.8,2750.7,10.01066271]
[1769750399210,0.762,2751.5,2750.9,9.10180816]
[1769750399703,0.762,2751.5,2750.9,10.01057162]
[1769750401203,1.67052118,2751.8,2750.9,10.01057162]
[1769750402581,0.762,2751.8,2750.9,10.01057162]
[1769750402780,1.67050041,2751.8,2751.1,9.10180816]
[1769750403312,0.762,2751.7,2751.1,9.10180816]
[1769750403509,7.32838347,2752.2,2751.1,9.10180816]
[1769750403809,0.762,2751.9,2751.1,9.10180816]
[1769750404579,0.762,2751.9,2751.3,9.10180816]
[1769750404884,0.762,2751.9,2751.3,10.46633617]
[1769750406707,0.762,2751.9,2751.3,11.37499056]
[1769750407297,0.762,2751.9,2751.3,10.46633617]
[1769750407487,11.39678789,2751.9,2751.1,0.90871081]
[1769750407686,10.63473905,2752.1,2751.3,10.01045609]
[1769750407904,0.762,2752.0,2751.3,10.01045609]
[1769750408109,0.762,2751.9,2751.3,10.01045609]
[1769750408381,0.762,2752.0,2751.3,10.01045609]
[1769750408581,0.762,2752.0,2751.3,11.37497687]
[1769750409518,11.39675576,2752.0,2751.2,0.90867127]
[1769750411209,10.48832021,2752.0,2751.1,12.73668648]
[1769750412712,11.39675605,2752.0,2751.1,12.73668648]
[1769750414491,10.48832021,2752.0,2751.1,12.73668648]
[1769750417824,0.762,2752.0,2751.2,9.10180816]
[1769750417992,0.762,2752.0,2751.4,9.10180816]
[1769750419293,0.001,2751.8,2751.4,9.10180816]
[1769750422928,0.001,2751.8,2751.4,10.01041976]
[1769750426699,0.90831866,2752.4,2751.6,9.06073711]
[1769750426912,0.762,2752.4,2751.6,9.06073711]
[1769750427131,0.762,2752.4,2751.7,9.96681082]
[1769750427329,10.03733012,2752.4,2751.4,0.9086116]
[1769750427531,10.03733012,2752.4,2751.4,0.90862451]
[1769750427913,9.27533012,2752.2,2751.4,9.96936162]
[1769750431333,10.18364115,2752.4,2751.4,9.96936162]
[1769750431536,0.762,2752.3,2751.4,9.96936162]
[1769750431738,0.762,2752.3,2751.5,10.54850327]
[1769750432030,10.18363184,2752.4,2751.5,10.54850327]
[1769750432031,0.762,2752.2,2751.5,10.54850327]
[1769750432422,0.001,2752.0,2751.5,10.54850327]
[1769750433537,0.001,2752.0,2751.6,0.90856229]
[1769750434326,0.001,2752.0,2751.5,9.96931083]
[1769750434526,0.001,2752.0,2751.6,1.36036921]
[1769750436037,0.001,2752.0,2751.6,2.2689081]
[1769750436840,0.001,2752.0,2751.6,11.61054793]
[1769750437952,0.001,2752.5,2751.7,9.34163983]
[1769750438114,0.001,2752.5,2751.9,9.34163983]
[1769750438315,0.001,2752.5,2752.1,9.34163983]
[1769750440519,0.001,2752.5,2752.1,10.25000423]
[1769750443550,0.001,2752.8,2752.2,9.34163983]
[1769750443868,0.001,2753.2,2752.2,9.34163983]
[1769750444366,0.30184528,2753.3,2752.2,9.34163983]
[1769750444552,0.30184528,2753.3,2752.6,9.34163983]
[1769750446071,1e-08,2753.3,2752.5,0.90826521]
[1769750446252,1e-08,2753.3,2752.6,9.34163983]
[1769750447471,10.48750526,2754.3,2753.1,9.34163983]
[1769750447767,10.51964152,2754.2,2753.2,10.27580381]
[1769750449566,0.761,2754.1,2753.3,10.24964113]
[1769750450169,9.75764152,2754.0,2753.2,0.93416398]
[1769750450366,16.25583548,2754.0,2753.2,0.90802693]
[1769750450560,0.761,2753.9,2753.2,0.90802693]
[1769750450869,9.75764152,2754.4,2753.2,10.24966676]
[1769750451074,10.51864152,2754.3,2753.2,10.24966676]
[1769750451381,10.66534611,2754.2,2753.4,9.34163983]
[1769750451587,10.66534611,2754.2,2753.3,2.29619097]
[1769750451878,10.66534611,2754.2,2753.2,10.24965415]
[1769750452092,9.75764152,2753.9,2753.2,0.90802966]
[1769750452945,9.75764152,2753.9,2753.0,10.24971817]
[1769750453185,9.75764152,2753.9,2753.0,0.90809773]
[1769750453485,9.75764152,2753.7,2752.9,0.90813324]
[1769750453899,9.75764152,2753.6,2752.8,0.90814244]
[1769750454112,10.51864152,2753.5,2752.8,0.90814244]
[1769750455951,6.44027512,2753.3,2752.4,0.90829821]
[1769750456174,8.12898408,2753.5,2752.4,10.04283953]
[1769750457183,6.4795349,2753.4,2752.4,10.04283953]
[1769750457396,6.4795349,2753.4,2752.4,0.90829821]
[1769750457582,6.4795349,2753.4,2752.4,10.04283953]
[1769750458195,7.38752724,2753.4,2752.4,10.04283953]
[1769750458408,7.38752724,2753.4,2752.8,0.002]
[1769750461374,0.761,2753.3,2752.8,0.002]
[1769750462602,6.57191576,2753.6,2752.8,0.002]
[1769750462815,0.761,2753.5,2752.8,9.13654132]
[1769750462971,0.761,2753.4,2752.8,9.13654132]
[1769750463170,13.97126381,2753.8,2753.0,9.13454132]
[1769750463403,0.761,2753.7,2753.0,9.13454132]
[1769750464328,0.761,2753.7,2753.0,10.04263557]
[1769750465415,0.761,2753.6,2753.0,10.04263557]
[1769750465617,0.761,2753.6,2753.0,10.04263362]
[1769750466223,13.06340851,2753.8,2753.0,10.04263362]
[1769750466410,0.761,2753.5,2753.0,10.04263362]
[1769750468025,13.97124798,2753.8,2753.0,10.04263362]
[1769750468341,0.761,2753.5,2753.0,10.04263362]
[1769750468919,3.63109149,2754.0,2753.0,10.04263362]
[1769750468920,7.58600838,2754.0,2753.0,10.04263362]
[1769750469119,0.761,2753.9,2753.0,10.04263362]
[1769750469715,6.49249275,2754.1,2753.0,10.04263362]
[1769750469920,0.761,2754.0,2753.0,10.04263362]
[1769750470638,0.58318112,2754.0,2753.1,9.13454132]
[1769750470803,0.58318112,2754.0,2753.3,9.13454132]
[1769750472448,6.74601216,2754.1,2753.4,0.90796833]
[1769750472650,0.761,2754.0,2753.4,0.90796833]
[1769750473679,0.761,2754.0,2753.3,0.90798623]
[1769750473680,7.52218592,2754.0,2753.3,0.90798623]
[1769750474474,0.761,2754.0,2753.3,10.04252755]
[1769750476278,0.761,2754.0,2753.4,9.13454132]
[1769750476843,0.761,2754.0,2753.5,0.90793535]
[1769750477183,0.761,2754.0,2753.6,9.13454132]
[1769750479176,0.761,2754.0,2753.6,10.0424305]
[1769750480607,0.762,2754.1,2753.6,10.04243713]
[1769750480888,0.762,2754.1,2753.6,10.04243974]
[1769750482398,0.001,2753.9,2753.6,10.04243974]
[1769750482696,0.001,2753.9,2753.6,11.40985619]
[1769750484598,0.001,2754.5,2753.6,11.40985619]
[1769750484599,0.001,2754.5,2753.7,9.13454132]
[1769750485090,0.001,2754.5,2753.9,9.13454132]
[1769750487269,0.001,2754.5,2754.1,9.30691584]
[1769750487470,0.001,2754.5,2754.2,1.02146864]
[1769750490102,0.001,2754.5,2754.2,1.92917287]
[1769750491475,0.001,2754.5,2754.2,11.23608871]
[1769750494416,7.07403719,2755.1,2754.2,11.23608871]
[1769750494713,0.761,2755.0,2754.2,11.23608871]
[1769750495013,7.6582173,2755.0,2754.3,1.4867016]
[1769750495417,0.761,2755.1,2754.3,11.5845515]
[1769750496005,7.68424903,2755.1,2754.3,11.5845515]
[1769750496315,0.90739943,2755.2,2754.4,0.90763868]
[1769750496517,6.93608764,2755.5,2754.4,11.00548858]
[1769750496697,0.761,2755.2,2754.6,10.0978499]
[1769750496891,7.84326522,2755.8,2754.6,10.0978499]
[1769750497097,0.761,2755.4,2754.6,10.0978499]
[1769750498501,6.96126077,2755.5,2754.7,0.90753984]
[1769750498700,7.72226077,2755.5,2754.8,1.04812064]
[1769750499122,8.62955187,2755.5,2754.8,1.04812064]
[1769750499308,8.62955187,2755.5,2754.6,0.90756666]
[1769750499309,15.13341134,2755.5,2754.6,0.90756666]
[1769750499506,0.90726471,2755.6,2754.6,11.00541656]
[1769750499813,0.761,2755.4,2754.6,11.00541656]
[1769750500018,0.761,2755.4,2754.7,11.56142143]
[1769750500817,0.761,2755.4,2754.7,12.46892911]
[1769750501219,0.761,2755.4,2754.7,2.37107921]
[1769750501521,7.7588527,2755.4,2754.7,0.90750768]
[1769750502220,8.6661692,2755.4,2754.6,0.90755376]
[1769750502409,7.7588527,2755.4,2754.7,0.90753312]
[1769750502812,7.7588527,2755.4,2754.6,0.90757278]
[1769750505330,8.66616239,2755.4,2754.5,10.0978499]
[1769750505627,7.04485246,2754.8,2754.3,0.90766444]
[1769750505832,1.66830969,2755.4,2754.3,0.90766444]
[1769750505833,7.04485246,2755.3,2754.5,0.9076032]
[1769750506395,7.04485246,2755.3,2754.2,13.72863679]
[1769750506595,7.04485246,2755.3,2754.4,0.90763822]
[1769750506792,7.05625692,2755.0,2753.9,0.90778144]
[1769750507093,1.66830969,2755.4,2753.8,0.90981351]
[1769750507094,7.05625692,2754.7,2753.8,0.90981351]
[1769750507317,7.06752966,2754.4,2753.8,0.002]
[1769750507493,8.73617536,2754.4,2753.8,0.002]
[1769750507706,8.73617536,2754.4,2753.5,0.002]
[1769750507933,7.06552966,2754.3,2753.5,0.002]
[1769750509112,7.06552966,2754.3,2753.5,0.90993155]
[1769750509346,0.90759498,2754.6,2753.5,11.00778145]
[1769750509646,3.63007048,2754.8,2753.5,11.00778145]
[1769750509647,7.99522994,2754.8,2753.5,11.00778145]
[1769750509806,0.761,2754.5,2753.7,10.0978499]
[1769750510860,10.12141699,2754.9,2753.7,10.0978499]
[1769750510861,0.90749246,2754.9,2753.7,10.0978499]
[1769750511003,8.76705644,2755.0,2753.7,10.0978499]
[1769750511423,8.76705644,2755.0,2753.9,10.0978499]
[1769750513860,7.13052456,2754.7,2753.8,0.90781709]
[1769750514156,7.13052456,2754.7,2753.9,0.90779967]
[1769750514324,7.14093448,2754.9,2753.9,11.00564957]
[1769750516061,8.04841922,2754.9,2753.9,11.00564957]
[1769750516223,7.17154052,2754.8,2753.9,12.46933592]
[1769750517626,0.761,2754.7,2753.9,12.46933592]
[1769750521873,8.888471,2754.7,2753.9,12.46933592]
[1769750522180,8.888471,2754.7,2753.9,0.90780075]
[1769750522379,8.888471,2754.7,2753.8,0.90781649]
[1769750522681,7.22934508,2754.4,2753.7,0.90785269]
[1769750523379,8.90714389,2754.7,2753.7,11.09841268]
[1769750523558,8.90714389,2754.7,2753.8,1.61939659]
[1769750523878,8.90714389,2754.7,2753.7,11.09841268]
[1769750524994,8.00874294,2754.6,2753.7,11.09841268]
[1769750526593,8.00874294,2754.6,2753.7,0.90785269]
[1769750527389,8.1821784,2754.5,2753.6,0.90790238]
[1769750530373,8.1821784,2754.5,2753.1,0.002]
[1769750530374,13.78488224,2753.9,2753.1,0.002]
[1769750530582,7.30066893,2753.8,2753.1,0.002]
[1769750530765,8.06166893,2753.7,2752.8,0.002]
[1769750531098,7.30066893,2753.5,2752.7,0.90619239]
[1769750531273,7.30066893,2753.5,2752.8,0.90616308]
[1769750531993,8.20861296,2753.5,2752.7,0.90817975]
[1769750536175,8.20861296,2753.5,2752.5,0.90824234]
[1769750536499,8.20861296,2753.5,2752.4,10.19255999]
[1769750536691,8.20861296,2753.5,2752.4,11.10085542]
[1769750537017,8.20861296,2753.5,2752.4,10.19255999]
[1769750538780,8.20861296,2753.5,2752.4,11.10085725]
[1769750539007,7.36596299,2753.4,2752.4,10.19255999]
[1769750539492,7.36596299,2753.4,2752.4,11.10085398]
[1769750540600,0.9080013,2753.3,2752.4,11.10085398]
[1769750546230,0.9080013,2753.3,2752.6,0.002]
[1769750546605,0.001,2753.1,2752.6,0.002]
[1769750549114,6.48421331,2752.8,2752.4,0.002]
[1769750549431,8.86254782,2752.7,2751.8,9.56326825]
[1769750549738,8.86254782,2752.7,2751.9,10.46972594]
[1769750551197,9.77077207,2752.7,2751.9,10.46972594]
[1769750552109,9.77077207,2752.7,2751.9,10.46972724]
[1769750552433,0.7232435,2752.6,2751.9,10.46972724]
[1769750552611,1.66922425,2752.7,2751.9,10.46972724]
[1769750553838,1.66922425,2752.7,2751.9,9.56126825]
[1769750555922,1.66922425,2752.7,2751.9,10.46973094]
[1769750557746,1.66922425,2752.7,2751.9,9.56126825]
[1769750558129,1.66922425,2752.7,2751.9,10.46973001]
[1769750558452,0.53019082,2752.6,2751.9,9.56126825]
[1769750559267,0.90908645,2753.1,2752.1,10.31517037]
[1769750559429,0.761,2752.7,2752.1,10.31517037]
[1769750559857,0.761,2752.7,2752.2,0.90836421]
[1769750560089,0.761,2752.7,2752.3,10.31317037]
[1769750563257,0.001,2753.1,2752.3,12.22219096]
[1769750563461,0.762,2753.1,2752.3,12.22219096]
[1769750563876,0.001,2753.1,2752.3,12.22219096]
[1769750564082,0.762,2753.1,2752.3,12.22219096]
[1769750564374,0.762,2753.1,2752.5,11.22143558]
[1769750569391,0.001,2753.1,2752.5,11.22143558]
[1769750572709,0.001,2753.1,2752.6,6.48421331]
[1769750572875,0.70106172,2753.8,2752.6,6.48421331]
[1769750573080,0.70106172,2753.8,2752.7,10.31317037]
[1769750573408,0.69506172,2753.8,2752.9,10.31317037]
[1769750574007,0.69506172,2753.8,2753.1,10.31317037]
[1769750576814,0.69506172,2753.8,2753.1,11.22121023]
[1769750579002,0.761,2754.0,2753.1,11.22121023]
[1769750581526,1.66877854,2754.0,2753.1,11.22121023]
[1769750581721,1.66877854,2754.0,2753.2,1.48536096]
[1769750581722,6.48421331,2753.9,2753.2,1.48536096]
[1769750582018,7.63966428,2753.8,2753.0,0.90808347]
[1769750582394,8.55200068,2753.7,2752.9,0.90811527]
[1769750582992,7.64413127,2754.3,2753.0,10.02452752]
[1769750583191,1.66870459,2754.2,2753.2,10.02452752]
[1769750583392,0.761,2754.2,2753.2,10.02452752]
[1769750585028,1.66871653,2754.2,2753.4,10.02452752]
[1769750585694,0.761,2754.2,2753.4,10.02452752]
[1769750586693,1.66870593,2754.2,2753.4,10.02452752]
[1769750586891,1.66870593,2754.2,2753.5,11.1177804]
[1769750591626,9.35116237,2754.2,2753.3,0.90797916]
[1769750591831,9.35116237,2754.2,2753.3,0.90799518]
[1769750592327,9.35116237,2754.2,2753.3,10.9325227]
[1769750594536,0.761,2754.2,2753.3,10.9325227]
[1769750594837,1.66870739,2754.2,2753.3,10.9325227]
[1769750595006,1.66870739,2754.2,2753.5,10.02452752]
[1769750596538,0.761,2754.2,2753.5,10.93246126]
[1769750596834,1.66871773,2754.2,2753.4,11.48099294]
[1769750597039,1.66871773,2754.2,2753.4,12.38896094]
[1769750597705,1.66871773,2754.2,2753.5,0.002]
[1769750598028,0.001,2754.0,2753.5,0.002]
[1769750598340,0.001,2754.0,2753.5,0.64207448]
[1769750610175,0.001,2754.0,2753.5,0.002]
[1769750611331,0.001,2754.0,2753.7,0.002]
[1769750611749,0.001,2753.8,2753.7,0.002]
[1769750616948,1.66870845,2754.2,2753.7,9.87470983]
[1769750617277,1.66870845,2754.2,2753.7,0.002]
[1769750618864,9.44959751,2754.2,2753.7,0.002]
[1769750619061,7.78088906,2754.1,2753.7,0.002]
[1769750619452,7.78088906,2754.1,2753.0,10.78079301]
[1769750620285,7.78041775,2753.9,2753.0,9.87270983]
[1769750620983,0.90777051,2754.0,2753.0,10.78081]
[1769750621180,0.761,2753.8,2753.0,10.78081]
[1769750621387,0.761,2753.8,2753.1,10.9282138]
[1769750621954,0.761,2753.8,2753.0,0.90809879]
[1769750621955,8.5420404,2753.8,2752.9,9.87270983]
[1769750622191,8.5420404,2753.8,2752.9,10.78083691]
[1769750622489,0.90786941,2753.7,2752.9,10.78083691]
[1769750625608,0.90786941,2753.7,2753.1,0.002]
[1769750626306,0.90786941,2753.7,2753.1,9.87470983]
[1769750629512,7.78608448,2753.6,2753.1,0.002]
[1769750630000,1.4378921,2753.7,2753.1,0.002]
[1769750631095,9.22467209,2753.7,2753.1,0.002]
[1769750636379,6.42,2754.2,2753.1,10.18386913]
[1769750636594,1.66873755,2754.1,2753.1,10.18386913]
[1769750636801,0.90773755,2754.1,2753.2,0.90803428]
[1769750637010,0.761,2754.0,2753.3,10.18186913]
[1769750638519,7.32756418,2754.7,2753.4,10.18186913]
[1769750638719,7.32756418,2754.7,2753.5,10.18186913]
[1769750638720,0.761,2754.3,2753.5,10.18186913]
[1769750638921,3.63003005,2754.8,2753.7,10.18186913]
[1769750638922,0.90750689,2754.8,2753.7,10.18186913]
[1769750639209,0.761,2754.7,2753.7,10.18186913]
[1769750639380,0.761,2754.7,2753.9,10.18186913]
[1769750640004,0.90750689,2754.8,2753.9,10.18186913]
[1769750640207,0.761,2754.7,2753.9,10.18186913]
[1769750640915,0.761,2754.7,2754.1,10.18186913]
[1769750641133,14.21350725,2755.3,2754.1,10.18186913]
[1769750641281,0.90729944,2755.5,2754.3,10.18186913]
[1769750643212,1.20282882,2755.7,2754.5,10.18186913]
[1769750643413,0.761,2755.4,2754.5,10.18186913]
[1769750645718,0.761,2755.4,2754.7,10.18186913]
[1769750645917,0.761,2755.4,2754.9,10.18186913]
[1769750647735,0.761,2755.5,2754.9,11.08932605]
[1769750650738,0.29559973,2755.7,2754.9,11.08932605]
[1769750650932,1.05659973,2755.7,2754.9,11.08932605]
[1769750651335,0.001,2755.2,2754.9,11.08932605]
[1769750651639,1.05659973,2755.7,2754.9,11.08932605]
[1769750651640,0.29559973,2755.7,2755.2,10.18186913]
[1769750655848,0.29559973,2755.7,2755.2,11.08923947]
[1769750660822,8.09898404,2755.7,2755.1,0.90738779]
[1769750661149,8.09898404,2755.7,2755.0,0.90741624]
[1769750661322,8.09898404,2755.7,2755.1,0.90740429]
[1769750662044,0.29559973,2755.7,2755.1,0.90740429]
[1769750662927,0.29559973,2755.7,2755.0,11.08929373]
[1769750663128,0.29559973,2755.7,2755.0,12.56121148]
[1769750663358,0.001,2755.5,2755.0,12.56121148]
[1769750666256,0.001,2755.5,2755.0,1.47191775]
[1769750666462,0.001,2755.5,2754.9,0.90745451]
[1769750667254,0.001,2755.5,2754.8,10.66991492]
[1769750667828,7.80755711,2755.5,2754.8,0.9074834]
[1769750668358,7.80755711,2755.5,2754.4,3.63048147]
[1769750668359,7.80691384,2755.0,2754.2,10.87139548]
[1769750668529,0.761,2754.9,2754.2,9.76243152]
[1769750668728,8.56791384,2754.9,2753.8,10.87140867]
[1769750668949,8.56791384,2754.9,2753.8,11.77923619]
[1769750669176,0.85679138,2754.8,2753.8,11.77923619]
[1769750669378,1.66849265,2754.9,2753.8,11.77923619]
[1769750670362,9.47608666,2754.9,2753.8,11.77923619]
[1769750673655,9.47608666,2754.9,2753.3,0.002]
[1769750673656,14.28937919,2753.9,2753.3,0.002]
[1769750673855,7.80864814,2753.8,2753.3,0.002]
[1769750674598,0.761,2753.9,2753.3,9.76443152]
[1769750675765,1.66880347,2753.9,2753.8,0.002]
[1769750675964,1.66880347,2753.9,2753.3,9.76443152]
[1769750681002,3.63099438,2754.1,2753.3,9.76443152]
[1769750681175,0.761,2753.8,2753.3,9.76443152]
[1769750685210,1.66883814,2753.8,2753.3,9.76443152]
[1769750685923,0.761,2753.8,2753.3,9.76443152]
[1769750686221,1.29099154,2753.8,2753.3,9.76443152]
[1769750687238,8.70129961,2754.4,2753.3,10.6724292]
[1769750687426,4.39169265,2754.3,2753.3,10.6724292]
[1769750688141,4.39169265,2754.3,2753.6,10.43614382]
[1769750691344,1.66867164,2754.3,2753.6,10.43614382]
[1769750693941,0.761,2754.2,2753.6,10.43614382]
[1769750694143,1.29092504,2754.2,2753.6,10.43614382]
[1769750698146,0.761,2754.1,2753.6,10.43614382]
[1769750698342,1.43764689,2754.2,2753.6,10.43614382]
[1769750698537,0.761,2754.0,2753.6,10.43614382]
[1769750698843,0.761,2754.0,2753.5,0.002]
[1769750699049,15.01144996,2754.0,2753.5,0.002]
[1769750699215,0.92007507,2753.9,2753.5,0.002]
[1769750700044,1.82787854,2753.9,2753.8,0.001]
[1769750700250,1.82787854,2753.9,2753.5,0.00100587]
[1769750700647,6.48073105,2753.7,2752.9,13.42455984]
[1769750700845,0.52992504,2753.6,2752.9,13.42255984]
[1769750701021,0.52992504,2753.6,2752.9,13.42055984]
[1769750701349,0.2335703,2755.3,2752.9,13.42055984]
[1769750701350,0.001,2754.1,2753.3,9.60023739]
[1769750701554,0.762,2754.1,2753.3,9.60023739]
[1769750701727,0.762,2754.1,2753.2,0.90803188]
[1769750701728,7.76534393,2753.9,2753.2,0.90803188]
[1769750702125,6.48073105,2754.0,2753.2,10.51026927]
[1769750702445,1.66974333,2754.1,2753.2,10.51026927]
[1769750703124,9.43340983,2754.1,2753.2,10.51026927]
[1769750705835,0.761,2754.0,2753.2,10.51026927]
[1769750707353,8.67240983,2754.1,2753.2,10.51026927]
[1769750707561,0.761,2753.9,2753.2,10.51026927]
[1769750707855,0.761,2753.9,2753.3,1.0052009]
[1769750708060,0.761,2753.9,2753.2,10.51026927]
[1769750709262,9.42136051,2753.9,2753.2,9.60223739]
[1769750709661,0.761,2753.9,2753.2,10.51027002]
[1769750710834,0.001,2754.1,2753.2,10.51027002]
[1769750711170,0.761,2754.0,2753.2,10.51027002]
[1769750711338,0.761,2754.0,2753.2,11.92453363]
[1769750712260,7.24963681,2754.0,2753.2,11.01650174]
[1769750712460,0.001,2753.8,2753.2,11.92453082]
[1769750713065,0.001,2753.8,2753.2,11.92452834]
[1769750713437,0.001,2753.8,2753.2,11.01650174]
[1769750713638,0.001,2753.8,2753.2,9.60223739]
[1769750714369,0.001,2753.8,2753.2,10.51026917]
[1769750721408,0.762,2753.8,2753.2,10.51026917]
[1769750724488,0.001,2754.1,2753.3,9.60223739]
[1769750724711,0.756,2754.1,2753.4,10.65326431]
[1769750725019,0.001,2753.8,2753.5,9.60223739]
[1769750727881,0.001,2753.8,2753.5,10.51015864]
[1769750728084,0.001,2753.8,2753.4,1.95897926]
[1769750728783,0.001,2753.8,2753.5,0.90792566]
[1769750729013,0.001,2753.8,2753.6,1.20361235]
[1769750730108,0.001,2753.8,2753.6,11.28078324]
[1769750731324,0.001,2753.8,2753.6,1.20361235]
[1769750731620,0.001,2753.8,2753.5,10.98508448]
[1769750734820,0.001,2753.8,2753.2,10.98520517]
[1769750735027,0.001,2753.8,2752.4,0.002]
[1769750735028,7.71786389,2753.7,2752.4,0.002]
[1769750735214,7.71786389,2753.7,2751.9,0.002]
[1769750735215,7.71288819,2753.0,2752.2,10.07717089]
[1769750735410,0.761,2753.2,2752.3,10.07717089]
[1769750735592,3.51507081,2753.2,2752.3,10.07717089]
[1769750735992,3.51507081,2753.2,2752.1,0.91036455]
[1769750735993,3.99796289,2752.7,2752.1,0.002]
[1769750736205,6.8649321,2752.6,2752.1,0.002]
[1769750736410,2.95580125,2752.6,2752.1,0.002]
[1769750736610,2.27768753,2752.6,2752.1,10.49174763]
[1769750736906,0.90826521,2752.5,2752.1,10.49174763]
[1769750737112,3.18594269,2752.6,2752.1,10.49174763]
[1769750737702,2.27768753,2752.6,2752.1,10.49174763]
[1769750738730,3.18592694,2752.6,2752.1,10.49174763]
[1769750738931,1.39550461,2752.5,2752.1,10.49174763]
[1769750739135,1.39550461,2752.5,2752.1,8.52622914]
[1769750739298,1.25793183,2752.7,2752.1,6.95381435]
[1769750739503,1.25793183,2752.7,2752.1,7.86220895]
[1769750740611,1.25793183,2752.7,2752.1,9.01201284]
[1769750748738,1.25793183,2752.7,2752.3,0.002]
[1769750748943,1.25793183,2752.7,2752.4,10.48974763]
[1769750749254,0.001,2752.5,2752.4,10.48974763]
[1769750750927,0.001,2752.5,2752.4,11.39804584]
[1769750753066,14.29458572,2753.7,2752.5,10.48974763]
[1769750753369,1.00834447,2753.5,2752.5,10.48974763]
[1769750759148,9.89706153,2753.5,2752.6,11.25267371]
[1769750759369,9.89706153,2753.5,2752.7,0.761]
[1769750761079,9.89706153,2753.5,2752.7,11.1054415]